bitfinex/quotes_ETHUSD_20250604
["timestamp","ask_amount","ask_price","bid_price","bid_amount"]
[1749015426281,2.22848488,2619.5,2619.4,16.319]
[1749015430263,2.22848488,2619.5,2618.5,2.5585488]
[1749015430470,2.22848488,2619.5,2619.1,8.235]
[1749015430666,0.55,2619.3,2619.2,9.939]
[1749015431649,0.55,2619.3,2619.2,16.317]
[1749015432170,0.55,2619.3,2619.2,8.235]
[1749015432495,0.55,2619.3,2619.2,16.317]
[1749015434278,0.55,2619.3,2619.2,9.939]
[1749015434483,1.19633,2619.3,2619.2,9.939]
[1749015434797,1.19633,2619.3,2619.2,16.317]
[1749015435878,0.55,2619.3,2619.2,16.317]
[1749015436709,0.55,2619.3,2619.2,9.939]
[1749015436910,0.55,2619.3,2619.2,16.317]
[1749015439326,4.67,2619.4,2619.2,16.317]
[1749015439526,0.02,2619.9,2619.2,16.317]
[1749015439742,0.02,2619.9,2619.3,2.5585488]
[1749015440573,0.02,2619.9,2619.2,16.317]
[1749015442845,0.02,2619.9,2619.2,8.235]
[1749015443027,0.02,2619.9,2619.3,8.081]
[1749015444949,0.02,2619.9,2619.4,6.376]
[1749015447153,0.02,2619.9,2619.5,6.375]
[1749015448633,0.02,2619.9,2619.6,6.375]
[1749015453156,0.02,2619.9,2619.2,8.235]
[1749015453456,0.02,2619.9,2619.3,8.077]
[1749015454842,0.02,2619.9,2619.4,8.077]
[1749015455053,0.02,2619.9,2619.5,6.373]
[1749015455255,0.57,2619.9,2619.6,6.373]
[1749015456138,0.02,2619.9,2619.6,6.373]
[1749015458542,0.02,2619.9,2619.4,1.704]
[1749015458741,0.02,2619.9,2619.5,6.372]
[1749015459065,0.02,2619.9,2619.6,6.372]
[1749015461386,0.02,2619.9,2619.7,8.234]
[1749015463096,0.02,2619.9,2619.8,1.7]
[1749015463587,0.02,2619.9,2618.8,2.5585488]
[1749015463746,0.02,2619.9,2618.9,0.25585488]
[1749015463947,0.55,2619.7,2618.9,0.25585488]
[1749015464282,0.55,2619.7,2619.0,6.371]
[1749015465155,0.55,2619.7,2619.1,9.934]
[1749015466283,0.55,2619.5,2619.1,9.934]
[1749015466473,0.55,2619.5,2619.2,6.37]
[1749015466848,0.55,2619.5,2619.3,16.304]
[1749015467046,0.98411488,2619.5,2619.3,16.304]
[1749015467556,0.98411488,2619.5,2619.3,8.234]
[1749015467761,0.98411488,2619.5,2619.4,1.701]
[1749015468073,2.24141488,2619.5,2619.4,1.701]
[1749015468876,4.79996368,2619.5,2619.4,1.701]
[1749015469171,1.69141488,2619.5,2619.4,1.701]
[1749015469363,1.8073,2619.5,2619.4,1.701]
[1749015470105,1.2573,2619.5,2619.4,1.701]
[1749015470301,1.1937,2619.8,2619.4,1.701]
[1749015470667,0.55,2619.7,2619.4,1.701]
[1749015474867,5.22,2619.7,2619.4,1.701]
[1749015475529,6.11922488,2619.7,2619.4,1.701]
[1749015477704,5.56922488,2619.7,2619.4,1.701]
[1749015477883,0.55,2619.6,2619.4,1.701]
[1749015479177,4.67,2619.7,2619.4,1.701]
[1749015480824,1.1937,2619.8,2619.4,1.701]
[1749015481366,2.5785488,2619.9,2619.4,1.701]
[1749015481367,0.02,2619.9,2619.4,1.701]
[1749015483356,0.02,2619.9,2619.5,6.367]
[1749015483732,0.57,2619.9,2619.3,8.234]
[1749015484071,2.87140368,2619.8,2619.4,8.068]
[1749015485344,4.02770368,2619.8,2619.4,8.068]
[1749015485856,4.02770368,2619.8,2619.4,1.701]
[1749015486168,0.55,2619.7,2619.4,1.701]
[1749015486429,0.55,2619.7,2619.5,8.067]
[1749015486560,0.45777037,2619.6,2619.5,8.067]
[1749015486873,0.55,2619.7,2619.5,8.067]
[1749015488573,0.55,2619.7,2619.5,1.701]
[1749015488876,3.1085488,2619.6,2619.5,1.701]
[1749015489052,3.1085488,2619.6,2619.5,8.067]
[1749015490964,3.1085488,2619.6,2619.5,1.701]
[1749015491162,3.1085488,2619.6,2619.5,8.066]
[1749015491370,3.53503368,2619.6,2619.5,1.701]
[1749015491539,3.53503368,2619.6,2619.5,8.066]
[1749015493382,1.8304,2619.4,2619.3,8.234]
[1749015493556,4.3889488,2619.4,2619.3,16.296]
[1749015493754,4.87049217,2619.4,2619.3,16.296]
[1749015494159,4.87049217,2619.4,2619.3,9.931]
[1749015494683,4.87049217,2619.4,2619.3,16.295]
[1749015495246,4.87049217,2619.4,2619.3,9.931]
[1749015495583,4.87049217,2619.4,2619.3,16.295]
[1749015495882,1.03154337,2619.4,2619.3,16.295]
[1749015496058,0.55,2619.4,2619.3,16.295]
[1749015496257,1.1903,2619.6,2619.3,16.295]
[1749015496443,0.55,2619.5,2619.3,16.295]
[1749015496651,1.2798,2619.8,2619.3,16.295]
[1749015497157,0.57,2619.9,2619.3,16.295]
[1749015499510,3.1285488,2619.9,2619.4,6.363]
[1749015500294,3.1285488,2619.9,2619.3,9.931]
[1749015500295,0.55,2619.6,2619.5,6.363]
[1749015500445,0.55,2619.6,2619.3,9.931]
[1749015500446,1.7791,2619.6,2619.3,9.931]
[1749015500642,1.7791,2619.6,2619.4,6.363]
[1749015500845,0.98376488,2619.5,2619.4,6.363]
[1749015501091,0.98376488,2619.5,2619.3,9.931]
[1749015501247,0.98376488,2619.5,2619.4,6.363]
[1749015501450,0.55,2619.4,2619.3,9.931]
[1749015501673,0.82628649,2619.4,2619.3,16.294]
[1749015502048,0.55,2619.2,2619.0,8.235]
[1749015502280,0.55,2619.2,2619.1,8.06]
[1749015503206,1.2383,2619.3,2619.1,8.06]
[1749015503207,4.23061368,2619.5,2619.1,8.06]
[1749015503379,0.55,2619.4,2619.1,8.06]
[1749015506191,0.55,2619.6,2619.1,8.06]
[1749015506751,1.2771,2619.7,2619.1,8.06]
[1749015507060,0.55,2619.8,2619.1,8.06]
[1749015507259,0.55,2619.8,2619.2,0.0551]
[1749015507462,4.67,2619.8,2619.2,0.0551]
[1749015507666,0.02,2619.9,2619.2,0.0551]
[1749015516108,0.02,2619.9,2619.3,9.931]
[1749015517512,0.02,2619.9,2619.4,6.359]
[1749015518127,0.02,2619.9,2619.3,9.931]
[1749015518291,0.02,2619.9,2619.5,6.359]
[1749015518628,0.0067,2619.9,2619.5,6.359]
[1749015521127,0.0067,2619.9,2619.3,8.234]
[1749015521332,0.0067,2619.9,2619.6,8.05]
[1749015526745,0.0067,2619.9,2619.7,8.234]
[1749015528740,0.0067,2619.9,2619.7,10.7925488]
[1749015528898,5.8632,2620.8,2619.9,2.5585488]
[1749015530295,5.8632,2620.8,2619.7,10.7925488]
[1749015531280,4.67,2620.8,2619.9,2.5585488]
[1749015531396,4.67,2620.8,2619.7,8.234]
[1749015531397,0.02,2620.9,2620.1,2.5585488]
[1749015531598,0.02,2620.9,2620.2,1.692]
[1749015532124,0.02,2620.9,2620.3,2.5585488]
[1749015532431,0.02,2620.9,2620.4,6.355]
[1749015541756,0.02,2620.9,2620.3,2.5585488]
[1749015541925,0.02,2620.9,2620.4,6.77605488]
[1749015543056,0.02,2620.9,2620.5,9.923]
[1749015544228,0.02,2620.9,2620.6,6.35]
[1749015546657,0.02,2620.9,2620.8,2.5585488]
[1749015546858,5.932e-05,2620.9,2620.8,2.5585488]
[1749015547230,5.932e-05,2620.9,2620.6,6.35]
[1749015548271,5.932e-05,2620.9,2620.7,2.5585488]
[1749015548830,5.932e-05,2620.9,2620.8,8.041]
[1749015549564,5.932e-05,2620.9,2620.5,8.231]
[1749015549762,5.932e-05,2620.9,2620.8,1.692]
[1749015551366,5.932e-05,2620.9,2620.8,8.04]
[1749015552227,5.932e-05,2620.9,2620.8,9.917]
[1749015553437,5.932e-05,2620.9,2620.8,16.264]
[1749015553847,5.932e-05,2620.9,2620.8,8.23]
[1749015554174,5.932e-05,2620.9,2620.8,16.264]
[1749015556440,5.932e-05,2620.9,2620.8,22.80844]
[1749015556639,0.35370424,2621.2,2620.8,16.264]
[1749015556842,0.35370424,2621.2,2621.1,2.5585488]
[1749015557066,0.35370424,2621.2,2621.1,8.033]
[1749015557743,0.35370424,2621.2,2621.1,10.5915488]
[1749015564046,0.35370424,2621.2,2621.1,8.033]
[1749015564763,0.53,2621.7,2621.2,2.34207]
[1749015564951,0.53,2621.7,2621.6,2.5585488]
[1749015569771,0.53,2621.7,2620.9,2.57066]
[1749015569972,0.48,2621.7,2621.5,2.5585488]
[1749015570172,0.48,2621.7,2621.6,1.687]
[1749015575204,0.48,2621.7,2621.6,9.914]
[1749015576602,0.48,2621.7,2621.6,8.227]
[1749015576798,0.48,2621.7,2621.6,16.254]
[1749015578279,0.48,2621.7,2621.6,16.253]
[1749015582096,0.48,2621.7,2621.6,16.252]
[1749015582336,0.48,2621.7,2621.6,8.227]
[1749015582632,0.48,2621.7,2621.3,2.5585488]
[1749015582633,1.2809,2621.6,2621.5,8.226]
[1749015582829,1.2809,2621.6,2621.5,16.247]
[1749015583142,1.2809,2621.6,2621.5,8.226]
[1749015583446,1.2809,2621.6,2621.5,9.909]
[1749015583730,1.71284488,2621.6,2621.5,9.909]
[1749015583891,1.2809,2621.6,2621.5,9.909]
[1749015588548,0.48,2621.7,2621.5,9.909]
[1749015593952,0.48,2621.7,2621.6,6.337]
[1749015597048,0.48,2621.7,2621.5,9.909]
[1749015597243,0.48,2621.7,2621.6,6.336]
[1749015599092,0.48,2621.7,2621.5,8.226]
[1749015599364,1.6702,2621.7,2621.6,8.018]
[1749015600570,0.90487488,2621.7,2621.6,8.018]
[1749015600734,2.10797488,2621.7,2621.6,8.018]
[1749015601373,1.6831,2621.7,2621.6,8.018]
[1749015601786,0.48,2621.7,2621.6,8.018]
[1749015603669,0.48,2621.7,2621.5,8.226]
[1749015603875,0.48,2621.7,2621.6,8.018]
[1749015604181,1.7227,2621.7,2621.6,8.017]
[1749015605285,1.7227,2621.7,2621.6,9.91]
[1749015606464,1.7227,2621.7,2621.6,16.244]
[1749015608187,0.48,2621.7,2621.6,16.244]
[1749015610462,0.48,2621.7,2621.6,16.63561241]
[1749015610668,0.48,2621.7,2621.6,16.244]
[1749015612656,0.48,2621.7,2621.6,18.8025488]
[1749015614981,0.48,2621.7,2621.6,9.91]
[1749015615316,0.48,2621.7,2621.6,16.238]
[1749015617897,0.48,2621.7,2621.6,18.7965488]
[1749015622918,0.48,2621.7,2621.6,16.236]
[1749015624591,0.48,2621.7,2621.6,8.227]
[1749015624788,0.48,2621.7,2621.6,16.235]
[1749015625290,0.48,2621.7,2621.6,18.7935488]
[1749015629090,0.48,2621.7,2621.6,16.235]
[1749015629290,0.48,2621.7,2621.6,9.906]
[1749015629631,0.48,2621.7,2621.6,16.234]
[1749015629992,0.48,2621.7,2621.6,9.906]
[1749015630443,0.48,2621.7,2621.6,16.234]
[1749015631718,1.6817,2621.7,2621.6,8.227]
[1749015631918,1.6817,2621.7,2621.6,16.233]
[1749015632102,2.10772488,2621.7,2621.6,16.233]
[1749015633365,1.6817,2621.7,2621.6,16.233]
[1749015634004,1.6817,2621.7,2621.6,9.906]
[1749015634207,1.6817,2621.7,2621.6,16.233]
[1749015634922,1.6817,2621.7,2621.6,8.227]
[1749015635122,1.6817,2621.7,2621.6,16.233]
[1749015637019,0.48,2621.7,2621.6,18.7915488]
[1749015637218,0.02,2621.9,2621.6,18.7915488]
[1749015637429,0.02,2621.9,2621.8,2.5585488]
[1749015638540,0.02,2621.9,2621.8,12.4635488]
[1749015639874,0.02,2621.9,2621.8,18.7895488]
[1749015640028,0.00033811,2621.9,2621.8,29.92484265]
[1749015640333,0.35393456,2622.4,2621.8,18.7895488]
[1749015640533,0.35393456,2622.4,2622.1,2.5585488]
[1749015640733,0.35393456,2622.4,2621.9,2.5585488]
[1749015640965,0.35393456,2622.4,2622.0,8.005]
[1749015641273,0.35393456,2622.4,2622.1,2.5585488]
[1749015641975,0.35393456,2622.4,2622.0,8.005]
[1749015644671,0.35393456,2622.4,2622.0,1.679]
[1749015644965,0.35393456,2622.4,2622.1,6.324]
[1749015646081,0.35393456,2622.4,2622.2,6.324]
[1749015646776,1.52043456,2622.4,2622.3,6.324]
[1749015646960,1.52043456,2622.4,2622.3,1.675]
[1749015647167,1.52043456,2622.4,2622.3,7.999]
[1749015648096,1.96372605,2622.4,2622.3,7.999]
[1749015650454,1.52043456,2622.4,2622.3,7.999]
[1749015652211,0.35393456,2622.4,2622.3,7.999]
[1749015652999,0.35393456,2622.4,2622.3,1.675]
[1749015653201,1.52183456,2622.4,2622.3,7.998]
[1749015653601,1.52183456,2622.4,2622.3,1.675]
[1749015653912,1.52183456,2622.4,2622.3,7.998]
[1749015654384,1.96526605,2622.4,2622.3,7.998]
[1749015656100,1.96526605,2622.4,2622.3,7.997]
[1749015656303,1.96526605,2622.4,2622.3,1.675]
[1749015656508,1.96526605,2622.4,2622.3,7.997]
[1749015657597,1.96526605,2622.4,2622.3,1.675]
[1749015657779,1.96526605,2622.4,2621.8,8.226]
[1749015657980,1.96526605,2622.4,2621.9,7.997]
[1749015659016,1.52183456,2622.4,2621.9,7.997]
[1749015660648,1.52183456,2622.4,2622.0,7.997]
[1749015661731,1.52183456,2622.4,2622.1,6.321]
[1749015662747,0.35393456,2622.4,2622.2,7.996]
[1749015663053,1.6607,2622.3,2622.2,1.675]
[1749015663214,1.6607,2622.3,2622.2,7.996]
[1749015663215,2.11801834,2622.3,2622.2,7.996]
[1749015663415,2.11801834,2622.3,2622.2,1.675]
[1749015663732,2.11801834,2622.3,2622.2,7.996]
[1749015663934,1.6607,2622.2,2621.8,8.226]
[1749015664248,1.1107,2622.0,2621.9,1.675]
[1749015664451,1.1107,2622.0,2621.9,7.996]
[1749015664648,1.47762488,2622.0,2621.9,7.996]
[1749015665147,1.47762488,2622.0,2621.8,8.226]
[1749015665447,1.47762488,2622.0,2621.9,7.996]
[1749015666815,2.02762488,2622.0,2621.9,7.996]
[1749015669975,2.02762488,2622.0,2621.9,1.675]
[1749015670275,2.02762488,2622.0,2621.9,7.995]
[1749015675298,2.02762488,2622.0,2621.8,8.226]
[1749015675508,1.6607,2622.0,2621.9,7.992]
[1749015681067,1.6607,2622.0,2621.8,8.226]
[1749015681381,1.6607,2622.0,2621.9,7.991]
[1749015683424,1.6607,2622.0,2621.9,9.899]
[1749015684628,1.6607,2622.0,2621.9,16.217]
[1749015685185,2.08262488,2622.0,2621.9,16.217]
[1749015685831,0.02,2621.9,2621.0,2.5585488]
[1749015686032,0.02,2621.9,2621.1,9.899]
[1749015686337,0.57,2621.9,2621.1,9.899]
[1749015686827,3.1285488,2621.9,2621.1,9.899]
[1749015687053,3.1285488,2621.9,2621.2,6.318]
[1749015688130,3.1285488,2621.9,2621.1,9.899]
[1749015688332,3.1285488,2621.9,2621.2,6.317]
[1749015688851,3.1285488,2621.9,2621.1,9.899]
[1749015689058,3.1285488,2621.9,2621.2,6.317]
[1749015689554,3.1285488,2621.9,2620.9,2.5585488]
[1749015691015,3.1285488,2621.9,2621.0,6.317]
[1749015695351,1.1784,2621.8,2621.1,16.215]
[1749015695723,0.55,2621.7,2621.1,8.227]
[1749015695931,0.55,2621.7,2621.2,1.672]
[1749015695932,1.2085,2621.6,2621.2,1.672]
[1749015696331,1.1273,2621.2,2619.4,5.21891636]
[1749015696635,1.1273,2621.5,2620.8,2.5585488]
[1749015696843,1.1273,2621.7,2621.0,2.5585488]
[1749015697049,1.1473,2621.9,2621.1,7.987]
[1749015701268,0.02,2621.9,2621.2,2.5585488]
[1749015701586,0.02,2621.9,2621.4,2.5585488]
[1749015701757,0.00019147,2621.9,2621.4,2.5585488]
[1749015703682,0.00019147,2621.9,2621.6,2.5585488]
[1749015703879,0.00019147,2621.9,2621.7,1.672]
[1749015706296,0.00019147,2621.9,2621.4,2.5585488]
[1749015706583,0.00019147,2621.9,2621.8,7.981]
[1749015710788,0.00019147,2621.9,2621.8,16.207]
[1749015712322,1.1393,2622.3,2621.8,16.207]
[1749015715425,3.7123488,2622.5,2621.8,16.207]
[1749015715592,1.1538,2622.5,2621.8,16.207]
[1749015720220,1.1538,2622.5,2621.9,7.977]
[1749015721223,1.1538,2622.5,2621.8,8.226]
[1749015721380,2.5585488,2622.4,2621.9,7.977]
[1749015721583,2.5585488,2622.4,2622.0,6.309]
[1749015722428,1.1538,2622.5,2622.0,6.309]
[1749015724214,2.5585488,2622.4,2622.1,7.976]
[1749015724415,1.1447,2622.3,2622.1,1.668]
[1749015724593,1.1447,2622.3,2622.2,6.308]
[1749015726116,1.1447,2622.3,2622.2,7.976]
[1749015727589,1.1447,2622.3,2620.2,7.78]
[1749015727810,1.1447,2622.3,2621.2,2.5585488]
[1749015728010,1.1447,2622.3,2621.3,1.668]
[1749015728830,1.1447,2622.3,2621.4,6.308]
[1749015729027,1.1447,2622.3,2621.4,18.8665488]
[1749015729226,1.1546,2622.6,2621.4,9.23387526]
[1749015729424,1.1546,2622.6,2621.4,8.8665488]
[1749015730098,2.5585488,2622.5,2621.4,8.8665488]
[1749015730299,2.5585488,2622.5,2621.4,2.5585488]
[1749015730628,1.1308,2622.4,2621.5,6.307]
[1749015730845,1.1308,2622.4,2621.6,8.226]
[1749015732329,1.1308,2622.4,2621.7,7.975]
[1749015734329,4.69,2622.9,2621.8,6.306]
[1749015734330,1.204,2622.2,2621.8,6.306]
[1749015734699,2.5585488,2621.9,2621.6,8.226]
[1749015734900,1.204,2621.8,2621.7,7.974]
[1749015735230,1.58025488,2621.8,2621.7,7.974]
[1749015735819,1.58025488,2621.8,2621.7,9.894]
[1749015736999,1.58025488,2621.8,2621.7,16.2]
[1749015738127,2.13025488,2621.8,2621.7,9.894]
[1749015738348,2.10815488,2621.8,2621.7,16.2]
[1749015738532,2.10815488,2621.8,2621.7,9.894]
[1749015738747,2.10815488,2621.8,2621.7,16.2]
[1749015739956,2.10815488,2621.8,2621.7,16.199]
[1749015747626,2.10815488,2621.8,2621.7,8.226]
[1749015747825,2.10815488,2621.8,2621.7,16.194]
[1749015748026,2.10815488,2621.8,2621.7,9.89]
[1749015748240,2.10815488,2621.8,2621.7,16.194]
[1749015749848,0.030821,2621.7,2620.7,2.5585488]
[1749015750052,0.030821,2621.7,2620.8,9.892]
[1749015751170,0.030821,2621.7,2620.9,6.304]
[1749015751668,0.030821,2621.7,2621.0,6.304]
[1749015753563,0.55,2621.7,2621.0,6.304]
[1749015753745,0.55,2621.7,2621.1,6.303]
[1749015754451,0.55,2621.7,2621.2,6.303]
[1749015754653,1.1447,2621.6,2621.2,6.303]
[1749015755188,1.1447,2621.6,2620.8,9.892]
[1749015755389,1.1447,2621.6,2620.9,6.303]
[1749015757603,1.1447,2621.6,2620.8,9.892]
[1749015757924,1.1447,2621.6,2620.9,6.302]
[1749015758825,0.55,2621.5,2620.0,2.5585488]
[1749015759118,1.1761,2621.4,2620.5,2.5585488]
[1749015759779,1.1761,2621.4,2620.6,6.302]
[1749015760902,1.0869,2621.6,2620.7,2.5585488]
[1749015762643,1.0869,2621.6,2620.9,2.5585488]
[1749015763319,1.0869,2621.6,2620.7,2.5585488]
[1749015765241,1.0869,2621.6,2620.8,9.892]
[1749015767795,1.0869,2621.6,2620.9,2.5585488]
[1749015768212,4.67,2621.7,2621.1,2.5585488]
[1749015768913,4.67,2621.7,2621.3,2.5585488]
[1749015769236,0.02,2621.9,2621.4,1.66]
[1749015769599,0.02,2621.9,2621.5,6.3]
[1749015770851,0.02,2621.9,2621.6,9.888]
[1749015771998,0.02,2621.9,2621.7,6.299]
[1749015776258,1.1086,2621.6,2620.2,10.0]
[1749015776426,1.1086,2621.4,2621.3,8.227]
[1749015776612,1.1086,2621.4,2621.3,16.185]
[1749015777413,1.1086,2621.4,2621.3,8.227]
[1749015777643,1.1086,2621.4,2621.3,16.184]
[1749015781247,1.47531488,2621.4,2621.3,16.184]
[1749015784379,1.1086,2621.4,2621.3,16.184]
[1749015784953,1.1086,2621.4,2621.3,9.887]
[1749015785293,1.1086,2621.4,2621.3,16.183]
[1749015790260,1.6586,2621.4,2621.3,9.887]
[1749015790466,1.6586,2621.4,2621.3,16.182]
[1749015792879,1.1086,2621.4,2621.3,16.182]
[1749015793899,1.6586,2621.4,2621.3,16.182]
[1749015794214,2.08031488,2621.4,2621.3,16.182]
[1749015795095,1.1625,2621.3,2619.5,2.18090684]
[1749015795311,2.5585488,2621.0,2619.6,1.66]
[1749015795463,2.5585488,2620.5,2619.6,7.954]
[1749015795822,1.1625,2620.4,2619.7,0.64168185]
[1749015796024,1.1625,2620.4,2619.8,9.888]
[1749015796199,1.1625,2620.4,2619.8,8.228]
[1749015796398,1.1625,2620.4,2619.9,1.66]
[1749015797285,1.1625,2620.4,2620.0,6.294]
[1749015797503,1.1625,2620.4,2619.8,8.228]
[1749015797806,1.1625,2620.4,2620.1,7.954]
[1749015799295,1.1625,2620.4,2620.2,6.295]
[1749015803772,0.55,2620.3,2620.1,1.66]
[1749015804129,0.55,2620.3,2620.2,6.295]
[1749015804791,3.1085488,2620.3,2620.2,6.295]
[1749015809996,3.1085488,2620.3,2620.1,1.66]
[1749015809997,3.53565368,2620.3,2620.1,1.66]
[1749015810195,3.53565368,2620.3,2620.1,7.955]
[1749015811204,0.97710488,2620.3,2620.2,1.657]
[1749015811519,0.02,2620.9,2620.2,1.657]
[1749015811520,0.55,2620.7,2620.2,1.657]
[1749015811684,0.55,2620.5,2620.2,1.657]
[1749015811881,0.55,2620.3,2620.2,1.657]
[1749015812221,6.3391,2620.3,2620.2,1.657]
[1749015812525,8.8976488,2620.3,2620.2,1.657]
[1749015812718,9.78741368,2620.3,2620.2,1.657]
[1749015817093,6.3391,2620.3,2620.2,1.657]
[1749015817291,1.1635,2620.6,2620.2,1.657]
[1749015817514,3.7220488,2620.6,2620.2,1.657]
[1749015817747,0.55,2620.5,2620.2,1.657]
[1749015818016,3.7220488,2620.6,2620.2,1.657]
[1749015818747,0.55,2620.5,2620.2,1.657]
[1749015820372,0.55,2620.3,2620.2,1.657]
[1749015820510,0.55,2620.3,2620.2,7.952]
[1749015821326,1.7268,2620.3,2620.2,1.657]
[1749015826121,1.7268,2620.3,2619.1,2.5585488]
[1749015826429,2.5585488,2620.2,2619.2,16.185]
[1749015827055,1.54980488,2620.5,2619.5,2.5585488]
[1749015827243,1.1226,2620.5,2619.5,2.5585488]
[1749015827646,0.55,2620.4,2619.5,2.5585488]
[1749015828727,0.55,2620.4,2619.3,2.5585488]
[1749015829061,3.1085488,2620.4,2619.3,2.5585488]
[1749015829254,0.55,2620.1,2619.2,9.89]
[1749015829462,0.55,2620.1,2619.4,6.295]
[1749015829620,1.6959,2620.1,2619.4,6.295]
[1749015830114,1.6959,2620.1,2619.2,8.233]
[1749015830320,1.6959,2620.1,2619.3,7.951]
[1749015832505,0.55,2620.1,2619.3,10.5095488]
[1749015833491,1.1774,2620.3,2619.3,10.5095488]
[1749015833676,0.55,2620.2,2619.5,2.5585488]
[1749015834348,0.55,2620.2,2619.3,10.5095488]
[1749015836586,1.1774,2620.3,2619.5,2.5585488]
[1749015836888,0.55,2620.3,2619.5,2.5585488]
[1749015837087,4.67,2620.4,2619.3,7.951]
[1749015837088,4.67,2620.4,2619.9,2.5585488]
[1749015837404,1.1783,2620.7,2620.0,1.656]
[1749015837610,0.55,2620.6,2620.0,1.656]
[1749015837905,1.1783,2620.7,2620.0,1.656]
[1749015838089,0.55,2620.6,2620.0,1.656]
[1749015839206,1.1783,2620.7,2620.1,9.889]
[1749015839411,1.1783,2620.7,2620.2,1.655]
[1749015840373,0.55,2620.8,2620.3,6.293]
[1749015841186,0.55,2620.8,2620.4,6.293]
[1749015844322,3.1085488,2620.8,2620.2,1.655]
[1749015844621,1.6175,2620.6,2620.5,6.292]
[1749015850415,1.6175,2620.6,2620.2,1.655]
[1749015850618,1.6175,2620.6,2620.5,6.291]
[1749015853738,1.6175,2620.6,2620.2,1.655]
[1749015853937,1.6175,2620.6,2620.5,6.291]
[1749015854108,2.12395837,2620.6,2620.5,6.291]
[1749015855448,5.8324,2620.9,2620.5,6.291]
[1749015855625,4.69,2620.9,2620.5,6.291]
[1749015855820,0.02,2620.9,2620.5,6.291]
[1749015863067,0.02,2620.9,2620.6,2.5585488]
[1749015863566,0.02,2620.9,2620.4,2.5585488]
[1749015863732,0.02,2620.9,2620.5,6.289]
[1749015864266,0.02,2620.9,2620.2,1.655]
[1749015864267,0.02,2620.9,2620.6,6.289]
[1749015864564,0.02,2620.9,2620.7,6.289]
[1749015864770,0.02,2620.9,2620.8,1.653]
[1749015867367,1.6632,2620.9,2620.8,7.941]
[1749015871039,1.6632,2620.9,2620.8,1.653]
[1749015871246,1.6632,2620.9,2620.8,7.941]
[1749015872072,1.6632,2620.9,2620.0,2.3585488]
[1749015872237,0.55,2620.8,2619.9,2.5585488]
[1749015873789,0.55,2620.8,2620.0,6.288]
[1749015874350,0.55,2620.8,2619.9,2.5585488]
[1749015874351,0.55,2620.8,2620.1,6.288]
[1749015874577,0.55,2620.8,2619.7,2.5585488]
[1749015874890,0.55,2620.8,2620.2,6.287]
[1749015875293,0.55,2620.8,2620.3,9.883]
[1749015876156,0.55,2620.8,2620.4,9.883]
[1749015876498,0.55,2620.8,2620.5,9.883]
[1749015876679,0.55,2620.8,2620.6,1.653]
[1749015876888,0.97217488,2620.8,2620.6,1.653]
[1749015877496,0.55,2620.8,2620.6,7.94]
[1749015879170,0.02,2620.9,2620.6,10.4985488]
[1749015879367,0.02,2620.9,2620.6,7.94]
[1749015884635,0.02,2620.9,2620.6,10.4985488]
[1749015890612,0.02,2620.9,2620.7,9.88]
[1749015891825,0.02,2620.9,2620.8,6.285]
[1749015893132,0.02,2620.9,2620.7,9.88]
[1749015893334,0.02,2620.9,2620.8,6.285]
[1749015895748,0.02,2620.9,2620.8,6.284]
[1749015896813,0.02,2620.9,2620.7,9.88]
[1749015897119,1.092,2620.9,2620.8,6.284]
[1749015900466,1.092,2620.9,2620.7,9.88]
[1749015900645,1.642,2620.9,2620.8,6.284]
[1749015900832,1.642,2620.9,2620.7,9.88]
[1749015900833,1.743,2620.8,2620.7,9.88]
[1749015901028,1.743,2620.8,2620.7,16.164]
[1749015903471,0.49505488,2620.9,2620.7,16.164]
[1749015903472,0.02,2620.9,2620.7,16.164]
[1749015906670,0.02,2620.9,2620.7,8.229]
[1749015906866,1.6746,2620.8,2620.7,8.229]
[1749015907035,1.6746,2620.8,2620.7,16.163]
[1749015907237,1.6746,2620.8,2620.7,9.88]
[1749015907441,1.6746,2620.8,2620.7,16.163]
[1749015907639,2.09991488,2620.8,2620.7,16.163]
[1749015908834,0.55,2620.8,2620.7,16.163]
[1749015909035,0.02,2620.9,2620.7,16.163]
[1749015915306,0.02,2620.9,2620.8,6.282]
[1749015924936,0.02,2620.9,2620.8,9.877]
[1749015925998,0.02,2620.9,2620.8,16.157]
[1749015932369,0.02,2620.9,2620.8,12.4345488]
[1749015933523,0.02,2620.9,2620.8,18.7135488]
[1749015933726,0.02,2620.9,2620.8,32.52917761]
[1749015933926,0.3533755,2621.5,2621.0,3.81529781]
[1749015934226,2.5785488,2622.9,2621.4,2.5585488]
[1749015934227,1.0802,2622.4,2621.4,2.5585488]
[1749015934565,1.0802,2622.4,2621.0,2.5585488]